{"text_format":"3","workbook":"xlsx","n_sheets":1,"sheets":["Proračun rashoda"],"not_rendered":{"charts":2,"defined_names":3},"read":"whole","date_system":"1900"}

{"sheet":"Proračun rashoda","index":0,"n_rows":47,"n_cols":7,"rows_kept":47,"merged":[[0,1,0,4],[0,5,0,6],[16,1,16,6],[48,1,48,6]]}
[null,"Proračun rashoda",{"$nulls":3},"CONTOSO, 2013."]
[]
[]
[null," PRORAČUN DJELATNIKA"]
{"$rows_empty":7}
[null,"STATUS","DJELATNICI","PRORAČUN","STVARNO","RAZLIKA (kn)","RAZLIKA (%)"]
[null,{"$f":"IFERROR(tblTroškoviOsoblja[[#This Row],[STVARNO]]/tblTroškoviOsoblja[[#This Row],[PRORAČUN]],\"\")","v":{"v":1.13,"d":"$1.13"}},"Ured",{"v":500,"d":"500.00 kn"},{"v":565,"d":"565.00 kn"},{"$f":"tblTroškoviOsoblja[[#This Row],[PRORAČUN]]-tblTroškoviOsoblja[[#This Row],[STVARNO]]","v":{"v":-65,"d":"-65.00 kn"}},{"$f":"IFERROR(tblTroškoviOsoblja[RAZLIKA (kn)]/tblTroškoviOsoblja[PRORAČUN],\"\")","v":{"v":-0.13,"d":"-13%"}}]
[null,{"$f":"IFERROR(tblTroškoviOsoblja[[#This Row],[STVARNO]]/tblTroškoviOsoblja[[#This Row],[PRORAČUN]],\"\")","v":{"v":1.2,"d":"$1.20"}},"Trgovina",{"v":125,"d":"125.00 kn"},{"v":150,"d":"150.00 kn"},{"$f":"tblTroškoviOsoblja[[#This Row],[PRORAČUN]]-tblTroškoviOsoblja[[#This Row],[STVARNO]]","v":{"v":-25,"d":"-25.00 kn"}},{"$f":"IFERROR(tblTroškoviOsoblja[RAZLIKA (kn)]/tblTroškoviOsoblja[PRORAČUN],\"\")","v":{"v":-0.2,"d":"-20%"}}]
[null,{"$f":"IFERROR(tblTroškoviOsoblja[[#This Row],[STVARNO]]/tblTroškoviOsoblja[[#This Row],[PRORAČUN]],\"\")","v":{"v":1,"d":"$1.00"}},"Prodajni predstavnici",{"v":100,"d":"100.00 kn"},{"v":100,"d":"100.00 kn"},{"$f":"tblTroškoviOsoblja[[#This Row],[PRORAČUN]]-tblTroškoviOsoblja[[#This Row],[STVARNO]]","v":{"v":0,"d":"0.00 kn"}},{"$f":"IFERROR(tblTroškoviOsoblja[RAZLIKA (kn)]/tblTroškoviOsoblja[PRORAČUN],\"\")","v":{"v":0,"d":"0%"}}]
[null,{"$f":"IFERROR(tblTroškoviOsoblja[[#This Row],[STVARNO]]/tblTroškoviOsoblja[[#This Row],[PRORAČUN]],\"\")","v":{"v":0.9,"d":"$0.90"}},"Ostalo",{"v":100,"d":"100.00 kn"},{"v":90,"d":"90.00 kn"},{"$f":"tblTroškoviOsoblja[[#This Row],[PRORAČUN]]-tblTroškoviOsoblja[[#This Row],[STVARNO]]","v":{"v":10,"d":"10.00 kn"}},{"$f":"IFERROR(tblTroškoviOsoblja[RAZLIKA (kn)]/tblTroškoviOsoblja[PRORAČUN],\"\")","v":{"v":0.1,"d":"10%"}}]
[]
[]
[null," OPERATIVNI PRORAČUN"]
{"$rows_empty":7}
[null,"STATUS","OPERATIVNO","PRORAČUN","STVARNO","RAZLIKA (kn)","RAZLIKA (%)"]
[null,{"$f":"IFERROR(tblOperativniTroškovi[[#This Row],[STVARNO]]/tblOperativniTroškovi[[#This Row],[PRORAČUN]],\"\")","v":{"v":0.98,"d":"$0.98"}},"Oglašavanje",{"v":250,"d":"250.00 kn"},{"v":245,"d":"245.00 kn"},{"$f":"tblOperativniTroškovi[[#This Row],[PRORAČUN]]-tblOperativniTroškovi[[#This Row],[STVARNO]]","v":{"v":5,"d":"5.00 kn"}},{"$f":"IFERROR(tblOperativniTroškovi[[#This Row],[RAZLIKA (kn)]]/tblOperativniTroškovi[[#This Row],[PRORAČUN]],\"\")","v":{"v":0.02,"d":"2%"}}]
[null,{"$f":"IFERROR(tblOperativniTroškovi[[#This Row],[STVARNO]]/tblOperativniTroškovi[[#This Row],[PRORAČUN]],\"\")","v":{"v":1.2,"d":"$1.20"}},"Dugovanja",{"v":125,"d":"125.00 kn"},{"v":150,"d":"150.00 kn"},{"$f":"tblOperativniTroškovi[[#This Row],[PRORAČUN]]-tblOperativniTroškovi[[#This Row],[STVARNO]]","v":{"v":-25,"d":"-25.00 kn"}},{"$f":"IFERROR(tblOperativniTroškovi[[#This Row],[RAZLIKA (kn)]]/tblOperativniTroškovi[[#This Row],[PRORAČUN]],\"\")","v":{"v":-0.2,"d":"-20%"}}]
[null,{"$f":"IFERROR(tblOperativniTroškovi[[#This Row],[STVARNO]]/tblOperativniTroškovi[[#This Row],[PRORAČUN]],\"\")","v":{"v":1,"d":"$1.00"}},"Dodaci",{"v":100,"d":"100.00 kn"},{"v":100,"d":"100.00 kn"},{"$f":"tblOperativniTroškovi[[#This Row],[PRORAČUN]]-tblOperativniTroškovi[[#This Row],[STVARNO]]","v":{"v":0,"d":"0.00 kn"}},{"$f":"IFERROR(tblOperativniTroškovi[[#This Row],[RAZLIKA (kn)]]/tblOperativniTroškovi[[#This Row],[PRORAČUN]],\"\")","v":{"v":0,"d":"0%"}}]
[null,{"$f":"IFERROR(tblOperativniTroškovi[[#This Row],[STVARNO]]/tblOperativniTroškovi[[#This Row],[PRORAČUN]],\"\")","v":{"v":0.9,"d":"$0.90"}},"Zalihe",{"v":100,"d":"100.00 kn"},{"v":90,"d":"90.00 kn"},{"$f":"tblOperativniTroškovi[[#This Row],[PRORAČUN]]-tblOperativniTroškovi[[#This Row],[STVARNO]]","v":{"v":10,"d":"10.00 kn"}},{"$f":"IFERROR(tblOperativniTroškovi[[#This Row],[RAZLIKA (kn)]]/tblOperativniTroškovi[[#This Row],[PRORAČUN]],\"\")","v":{"v":0.1,"d":"10%"}}]
[null,{"$f":"IFERROR(tblOperativniTroškovi[[#This Row],[STVARNO]]/tblOperativniTroškovi[[#This Row],[PRORAČUN]],\"\")","v":""},"Poštarina",null,null,{"$f":"tblOperativniTroškovi[[#This Row],[PRORAČUN]]-tblOperativniTroškovi[[#This Row],[STVARNO]]","v":{"v":0,"d":"0.00 kn"}},{"$f":"IFERROR(tblOperativniTroškovi[[#This Row],[RAZLIKA (kn)]]/tblOperativniTroškovi[[#This Row],[PRORAČUN]],\"\")","v":""}]
[null,{"$f":"IFERROR(tblOperativniTroškovi[[#This Row],[STVARNO]]/tblOperativniTroškovi[[#This Row],[PRORAČUN]],\"\")","v":""},"Stanarina ili stambeni kredit",null,null,{"$f":"tblOperativniTroškovi[[#This Row],[PRORAČUN]]-tblOperativniTroškovi[[#This Row],[STVARNO]]","v":{"v":0,"d":"0.00 kn"}},{"$f":"IFERROR(tblOperativniTroškovi[[#This Row],[RAZLIKA (kn)]]/tblOperativniTroškovi[[#This Row],[PRORAČUN]],\"\")","v":""}]
[null,{"$f":"IFERROR(tblOperativniTroškovi[[#This Row],[STVARNO]]/tblOperativniTroškovi[[#This Row],[PRORAČUN]],\"\")","v":""},"Prodajni troškovi",null,null,{"$f":"tblOperativniTroškovi[[#This Row],[PRORAČUN]]-tblOperativniTroškovi[[#This Row],[STVARNO]]","v":{"v":0,"d":"0.00 kn"}},{"$f":"IFERROR(tblOperativniTroškovi[[#This Row],[RAZLIKA (kn)]]/tblOperativniTroškovi[[#This Row],[PRORAČUN]],\"\")","v":""}]
[null,{"$f":"IFERROR(tblOperativniTroškovi[[#This Row],[STVARNO]]/tblOperativniTroškovi[[#This Row],[PRORAČUN]],\"\")","v":""},"Porez",null,null,{"$f":"tblOperativniTroškovi[[#This Row],[PRORAČUN]]-tblOperativniTroškovi[[#This Row],[STVARNO]]","v":{"v":0,"d":"0.00 kn"}},{"$f":"IFERROR(tblOperativniTroškovi[[#This Row],[RAZLIKA (kn)]]/tblOperativniTroškovi[[#This Row],[PRORAČUN]],\"\")","v":""}]
[null,{"$f":"IFERROR(tblOperativniTroškovi[[#This Row],[STVARNO]]/tblOperativniTroškovi[[#This Row],[PRORAČUN]],\"\")","v":""},"Režije",null,null,{"$f":"tblOperativniTroškovi[[#This Row],[PRORAČUN]]-tblOperativniTroškovi[[#This Row],[STVARNO]]","v":{"v":0,"d":"0.00 kn"}},{"$f":"IFERROR(tblOperativniTroškovi[[#This Row],[RAZLIKA (kn)]]/tblOperativniTroškovi[[#This Row],[PRORAČUN]],\"\")","v":""}]
[null,{"$f":"IFERROR(tblOperativniTroškovi[[#This Row],[STVARNO]]/tblOperativniTroškovi[[#This Row],[PRORAČUN]],\"\")","v":""},"Ostalo",null,null,{"$f":"tblOperativniTroškovi[[#This Row],[PRORAČUN]]-tblOperativniTroškovi[[#This Row],[STVARNO]]","v":{"v":0,"d":"0.00 kn"}},{"$f":"IFERROR(tblOperativniTroškovi[[#This Row],[RAZLIKA (kn)]]/tblOperativniTroškovi[[#This Row],[PRORAČUN]],\"\")","v":""}]
[null,{"$f":"IFERROR(tblOperativniTroškovi[[#This Row],[STVARNO]]/tblOperativniTroškovi[[#This Row],[PRORAČUN]],\"\")","v":""},"Osiguranje",null,null,{"$f":"tblOperativniTroškovi[[#This Row],[PRORAČUN]]-tblOperativniTroškovi[[#This Row],[STVARNO]]","v":{"v":0,"d":"0.00 kn"}},{"$f":"IFERROR(tblOperativniTroškovi[[#This Row],[RAZLIKA (kn)]]/tblOperativniTroškovi[[#This Row],[PRORAČUN]],\"\")","v":""}]
[null,{"$f":"IFERROR(tblOperativniTroškovi[[#This Row],[STVARNO]]/tblOperativniTroškovi[[#This Row],[PRORAČUN]],\"\")","v":""},"Kamata",null,null,{"$f":"tblOperativniTroškovi[[#This Row],[PRORAČUN]]-tblOperativniTroškovi[[#This Row],[STVARNO]]","v":{"v":0,"d":"0.00 kn"}},{"$f":"IFERROR(tblOperativniTroškovi[[#This Row],[RAZLIKA (kn)]]/tblOperativniTroškovi[[#This Row],[PRORAČUN]],\"\")","v":""}]
[null,{"$f":"IFERROR(tblOperativniTroškovi[[#This Row],[STVARNO]]/tblOperativniTroškovi[[#This Row],[PRORAČUN]],\"\")","v":""},"Telefon",null,null,{"$f":"tblOperativniTroškovi[[#This Row],[PRORAČUN]]-tblOperativniTroškovi[[#This Row],[STVARNO]]","v":{"v":0,"d":"0.00 kn"}},{"$f":"IFERROR(tblOperativniTroškovi[[#This Row],[RAZLIKA (kn)]]/tblOperativniTroškovi[[#This Row],[PRORAČUN]],\"\")","v":""}]
[null,{"$f":"IFERROR(tblOperativniTroškovi[[#This Row],[STVARNO]]/tblOperativniTroškovi[[#This Row],[PRORAČUN]],\"\")","v":""},"Održavanje i popravci",null,null,{"$f":"tblOperativniTroškovi[[#This Row],[PRORAČUN]]-tblOperativniTroškovi[[#This Row],[STVARNO]]","v":{"v":0,"d":"0.00 kn"}},{"$f":"IFERROR(tblOperativniTroškovi[[#This Row],[RAZLIKA (kn)]]/tblOperativniTroškovi[[#This Row],[PRORAČUN]],\"\")","v":""}]
[null,{"$f":"IFERROR(tblOperativniTroškovi[[#This Row],[STVARNO]]/tblOperativniTroškovi[[#This Row],[PRORAČUN]],\"\")","v":""},"Pravni troškovi",null,null,{"$f":"tblOperativniTroškovi[[#This Row],[PRORAČUN]]-tblOperativniTroškovi[[#This Row],[STVARNO]]","v":{"v":0,"d":"0.00 kn"}},{"$f":"IFERROR(tblOperativniTroškovi[[#This Row],[RAZLIKA (kn)]]/tblOperativniTroškovi[[#This Row],[PRORAČUN]],\"\")","v":""}]
[null,{"$f":"IFERROR(tblOperativniTroškovi[[#This Row],[STVARNO]]/tblOperativniTroškovi[[#This Row],[PRORAČUN]],\"\")","v":""},"Amortizacija",null,null,{"$f":"tblOperativniTroškovi[[#This Row],[PRORAČUN]]-tblOperativniTroškovi[[#This Row],[STVARNO]]","v":{"v":0,"d":"0.00 kn"}},{"$f":"IFERROR(tblOperativniTroškovi[[#This Row],[RAZLIKA (kn)]]/tblOperativniTroškovi[[#This Row],[PRORAČUN]],\"\")","v":""}]
[null,{"$f":"IFERROR(tblOperativniTroškovi[[#This Row],[STVARNO]]/tblOperativniTroškovi[[#This Row],[PRORAČUN]],\"\")","v":""},"Isporuka",null,null,{"$f":"tblOperativniTroškovi[[#This Row],[PRORAČUN]]-tblOperativniTroškovi[[#This Row],[STVARNO]]","v":{"v":0,"d":"0.00 kn"}},{"$f":"IFERROR(tblOperativniTroškovi[[#This Row],[RAZLIKA (kn)]]/tblOperativniTroškovi[[#This Row],[PRORAČUN]],\"\")","v":""}]
[null,{"$f":"IFERROR(tblOperativniTroškovi[[#This Row],[STVARNO]]/tblOperativniTroškovi[[#This Row],[PRORAČUN]],\"\")","v":""},"Skladište",null,null,{"$f":"tblOperativniTroškovi[[#This Row],[PRORAČUN]]-tblOperativniTroškovi[[#This Row],[STVARNO]]","v":{"v":0,"d":"0.00 kn"}},{"$f":"IFERROR(tblOperativniTroškovi[[#This Row],[RAZLIKA (kn)]]/tblOperativniTroškovi[[#This Row],[PRORAČUN]],\"\")","v":""}]
[null,{"$f":"IFERROR(tblOperativniTroškovi[[#This Row],[STVARNO]]/tblOperativniTroškovi[[#This Row],[PRORAČUN]],\"\")","v":""},"Ostalo",null,null,{"$f":"tblOperativniTroškovi[[#This Row],[PRORAČUN]]-tblOperativniTroškovi[[#This Row],[STVARNO]]","v":{"v":0,"d":"0.00 kn"}},{"$f":"IFERROR(tblOperativniTroškovi[[#This Row],[RAZLIKA (kn)]]/tblOperativniTroškovi[[#This Row],[PRORAČUN]],\"\")","v":""}]
[null,null,"Ukupni troškovi",{"$f":"SUBTOTAL(109,tblOperativniTroškovi[PRORAČUN],tblTroškoviOsoblja[PRORAČUN])","v":{"v":1400,"d":"1,400.00 kn"}},{"$f":"SUBTOTAL(109,tblOperativniTroškovi[STVARNO],tblTroškoviOsoblja[STVARNO])","v":{"v":1490,"d":"1,490.00 kn"}},{"$f":"SUBTOTAL(109,tblOperativniTroškovi[RAZLIKA (kn)],tblTroškoviOsoblja[RAZLIKA (kn)])","v":{"v":-90,"d":"-90.00 kn"}},{"$f":"IFERROR(SUM(tblOperativniTroškovi[[#Totals],[RAZLIKA (kn)]]/tblOperativniTroškovi[[#Totals],[PRORAČUN]]),\"\")","v":{"v":-0.06428571428571428,"d":"-6%"}}]